Workbook

Sheet INFO
A1: DISCLAIMER: • This spreadsheet has been developed in the framework of the preparation and revision of the set of EN or ISO standards on the energy performance of buildings, to support the European "Energy Performance of Buildings Directive" recast (EPBD-recast, directive 2010/31/EU). • It is meant for use by CEN and ISO technical committee(s) and the working group(s) working on the preparation or revision of the EPB-standard to which this spreadsheet applies. The spreadsheet supports checking that all equations in the developed standard are consistent and can be linked with other relevant standards. It is not meant to perform a full or partial energy performance calculation. • The spreadsheet supports the expert user of the standards, in particular those who want to review the content of the standard and those who want to translate the standard to a software, to understand the correct interpretation of the equations and calculation steps in the standard. • Although it has been developed with care, neither the technical committee(s), nor the working group(s) and experts related to the EPB- standard to which this spreadsheet applies warrant that the calculations and procedures in this spreadsheet are free of errors. The technical committees as well as the working groups and their respective members expressly disclaim any liability or responsibility arising from use of this spreadsheet, or any consequences thereof. Any responsibility arising from the use of this spreadsheet lies with the user.
A2: DRAFT VERSION: • As long as the associated EPB standard or any of the other EPB standards to which it is directly linked are in a draft stage, this spreadsheet is also a draft version only.
A3: WARNINGS: • Note that the spreadsheet may not allow testing all calculation options that are possible according to the standard to which it applies. This remark applies in particular but not only to limitations on the number instances of a variable that can be considered. • In case of differences, the standard should be regarded as the reference, not the spreadsheet. However, during the standard's drafting phase, shortcomings in the draft standard may have been detected and dealt with in the spreadsheets (ideally, such differences are marked). • Note also that these spreadsheets are purely intended for testing and demonstration and therefore not aiming to be user friendly or to be protected against wrong or improper use.
A4: TERMS OF USE: • The user is not allowed to redistribute a modified version of this spreadsheet. • The author(s) would appreciate your feed back on the spreadsheet via the comment sheets for the associated draft standard to be prepared by the national standards bodies during enquiry of the draft standard(s),
A5: Intended use of this document Those responsible for the drafting of actual individual EPB standards shall - read and understand the following documents - prCEN/TS 16628 Basic Principles (in short "BP") - prCEN/TS 16629 Detailed Technical Rules (in short "DTR") - prEN 15603:2013 ("Overarching Standard", in short "OA")) - prCEN/TR 15615:2013 Technical report to overarching standard; - Prepare their individual EPB standard according to CEN rules, BP, DTR and OA - Prepare the accompanying technical report using the dedicated template - Prepare an accompanying XLS spreadsheet, to demonstrate inputs, output and calculation chain. This sample excel spreadsheet provides a template to help in this task.
A6: Why an Excel spradsheet? To demonstrate the validity and required data I/O for the calculation procedure defined in the standard: - list of all input needed --> sheet "Method_input" - list of intended output --> sheet "Method_output" - calculation sequence --> sheet "Method_calculation"
A7: The example is prepared for a simple procedure. The sheet calculation may need extensions such as: - using several columns when operating on arrays - refering to a subset of sheets input/calculation/output to describe a subroutine For complex tasks MACRO can be used. This sheet does not support calculation methods that take into account data in a different time-step than that that is being calculated. A version that allows taking into account values at previous time step will be developed.
A8: LIST OF AVAILABLE SHEETS
A9: Simplified_input_correlation Use this sheet to demontrate simplified input correlation, if any in your standard. Typically these correlations are defined in annex C of the standard. They provide the normal detailed input of a procedure, based on a simplified input data set.
A10: Product_descriptive_data Use this sheet to list product descriptive data (typically with case identifiers). Some examples of selection tables are given. The output from the selection tables (green cells) can be linked to the sheet "method_input" for use in the procedure.
A11: Product_tech_data Use this sheet to list product technical data (typically numerical values and data). Some examples are given with default that may be typically included in annex A of the standard. The output from the selection tables (green cells) can be linked to the sheet "method_input" for use in the procedure.
A12: Process_design_data Use this sheet to list system descriptive data (typically with case identifiers). Some examples of selection tables are given. The output from the selection tables (green cells) can be linked to the sheet "method_input" for use in the procedure.
A13: Data_catalogue_example It is an example of how a data catalogue can work, filtering the catalogue of product properties based on product descriptive data. You can optionally build a similar catalogue for products involved in your standard.
A14: Input_series Prepare in this sheet data for each time step if you want to test the procedure on more steps.
A15: Method_input List in this sheet all the input required for the calculation in one time step. THIS SHEET IS REQUIRED TO DEMONSTRATE THE REQUIRED DATA INPUT.
A16: Method_calculation Detail in this sheet your calculation procedure. There should be one calculation in one cell for each equation in the standard. THIS SHEET IS REQUIRED TO DEMONSTRATE THE CALCULATION PROCEDURE.
A17: Method_output List in this sheet all the intended output of the procedure. THIS SHEET IS REQUIRED TO DEMONSTRATE THE AVAILABLE DATA OUTPUT.
A18: Output_series Series alculation results are stored in this sheet. Calculation for each time step is launched in this sheet.

Sheet Simplified_input_correlation
A1: Create here a simulation of each correlation method in your Annex C
A4: Name | B4: Symbol | C4: Unit | D4: Value | E4: Range | F4: Formula ref. | G4: Formula | H4: Notes
A5: Input data
A6: Length of the building | B6: lL | C6: m | D6: 30 | E6: 4…100
A7: Width of the building | B7: lW | C7: m | D7: 20 | E7: 4…20
A8: Number of loors | B8: Nlev | C8: - | D8: 3 | E8: 1…10
A9: Floor heigth | B9: Hfl | C9: m | D9: 3.1 | E9: 2…5
A12: METHOD
A14: Detail all formulas
A15: Length of connection of radiators to vertical shafts | B15: lA | C15: m | D15: =0.55*Method_in*D7*D8 -> 990
A16: Length of vertical shafts | B16: lS | C16: m | D16: =0.025*Method_in*D7*D8*D9 -> 139.5
A17: Length of base collector | B17: lV | C17: m | D17: =2*Method_in+0.01625*Method_in*D7*D7 -> 255
A18: …
A20: Output data
A21: Length of shafts | B21: lS | C21: m | E21: 0...∞
A22: diameter of shafts | B22: dS | C22: m | E22: 0…0,2
A23: Length of base ring | B23: lB | C23: m | E23: 0...∞
A24: diameter of base ring | B24: dB | C24: m | E24: 0…0,2

Sheet Product_descriptive_data
A1: Example of descriptive data. In a simple structure, this can be connected directly to the "method_input" sheet where this data is required. In this example spreadsheet the "Method_input" is linked to the "data_catalogue".
A6: Product descriptive data (qualitative)
A8: Cooling generator type 1
A9: 1 | B9: GEN_TYPE | C9: =INDEX(C11:C13,A9) -> COMP
A11: Compression chiller | C11: COMP
A12: Absorption chiller | C12: ABS
A13: Any other generator type | C13: OTHER
A16: Cooling generator type 2
A17: 2 | B17: GEN_TYPE | C17: =INDEX(C19:C21,A17) -> ABS
A19: Compression chiller | C19: COMP
A20: Absorption chiller | C20: ABS
A21: Any other generator type | C21: OTHER
A24: Heat rejection type
A25: 4 | B25: HEAT_REJ_TYPE | C25: =INDEX(C27:C31,A25) -> HYBRID
A27: Air cooled condenser | C27: AIR_C_COND
A28: Heat rejection with dry operation | C28: DRY
A29: Heat rejection with wet operation (sprayed air cooler, cooling tower) | C29: WET
A30: Heat rejection with dry or wet operation depending on conditions | C30: HYBRID
A31: Other type of heat rejection (ground, ground water, surface water) | C31: OTHER

Sheet Product_tech_data
A1: EXAMPLE OF A SHEET WITH DEFAULT INPUT Create here a simulation of each default data formula given in annex A of the standard. Optionally connect the selected values to the detailed input data selection sheet (detailed input)
A4: 6.3.2.2.2 Compressor chiller characteristics | D4: Chiller 1 | E4: Chiller 2
A5: energy efficiency at full-load | B5: EER1.0 | C5: - | D5: 2.83 | E5: 4 | F5: EN 14825 | G5: No | J5: Matrix A:
A6: evaporator chilled water outlet temperature at full load | B6: ϑC;wat;evap;out;1.0 | C6: °C | D6: 7 | E6: 7 | F6: EN 14825 | G6: No | J6: 1 | K6: 1 | L6: 1 | M6: 1 | O6: =D5/((273+D6-0.5*D26)/(D7-D6+D26)) -> 0.4367680436 | P6: =E5/((273+E6-0.5*E26)/(E7-E6+E26)) -> 0.7111111111
A7: condensor cooling water/air inlet temperature at full load | B7: ϑcond;in;1.0 | C7: °C | D7: 35 | E7: 35 | F7: EN 14825 | G7: No | J7: =0.75^3 -> 0.421875 | K7: =0.75^2 -> 0.5625 | L7: 0.75 | M7: 1 | O7: =D8/((273+D9-0.5*D26)/(D10-D9+D26)) -> 0.4882968031 | P7: =E8/((273+E9-0.5*E26)/(E10-E9+E26)) -> 0.637037037
A8: energy efficiency at 75% load | B8: EER0.75 | C8: - | D8: 3.59 | E8: 4 | F8: EN 14825 | G8: No | J8: =0.5^3 -> 0.125 | K8: =0.5^2 -> 0.25 | L8: 0.5 | M8: 1 | O8: =D11/((273+D12-0.5*D26)/(D13-D12+D26)) -> 0.5602360418 | P8: =E11/((273+E12-0.5*E26)/(E13-E12+E26)) -> 0.562962963
A9: evaporator chilled water outlet temperature at 75% load | B9: ϑC;wat;evap;out;0.75 | C9: °C | D9: 7 | E9: 7 | F9: EN 14825 | G9: No | J9: =0.25^3 -> 0.015625 | K9: =0.25^2 -> 0.0625 | L9: 0.25 | M9: 1 | O9: =D14/((273+D15-0.5*D26)/(D16-D15+D26)) -> 0.4819807405 | P9: =E14/((273+E15-0.5*E26)/(E16-E15+E26)) -> 0.4888888889
A10: condensor cooling water/air inlet temperature at 75% load | B10: ϑcond;in;0.75 | C10: °C | D10: 30 | E10: 30 | F10: EN 14825 | G10: No | J10: B = Inverse of matrix A:
A11: energy efficiency at 50% load | B11: EER0.5 | C11: - | D11: 4.76 | E11: 4 | F11: EN 14825 | G11: No | J11: =MINVERSE(A) -> 10.66666667 | K11: -32 | L11: 32 | M11: -10.66666667
A12: evaporator chilled water outlet temperature at 50% load | B12: ϑC;wat;evap;out;0.5 | C12: °C | D12: 7 | E12: 7 | F12: EN 14825 | G12: No | J12: -16 | K12: 56 | L12: -64 | M12: 24
A13: condensor cooling water/air inlet temperature at 50% load | B13: ϑcond;in;0.5 | C13: °C | D13: 25 | E13: 25 | F13: EN 14825 | G13: No | J13: 7.333333333 | K13: -28 | L13: 38 | M13: -17.33333333
A14: energy efficiency at 25% load | B14: EER0.25 | C14: - | D14: 4.85 | E14: 4 | F14: EN 14825 | G14: No | J14: -1 | K14: 4 | L14: -6 | M14: 4
A15: evaporator chilled water outlet temperature at 25% load | B15: ϑC;wat;evap;out;0.25 | C15: °C | D15: 7 | E15: 7 | F15: EN 14825 | G15: No
A16: condensor cooling water/air inlet temperature at 25% load | B16: ϑcond;in;0.25 | C16: °C | D16: 20 | E16: 20 | F16: EN 14825 | G16: No
A17: energy efficiency at 5th measured point | B17: EER5 | C17: - | D17: 3.63 | E17: 4 | F17: local | G17: No
A18: evaporator chilled water outlet temperature at 5th measured point | B18: ϑC;wat;evap;out;5 | C18: °C | D18: 7 | E18: 7 | F18: local | G18: No
A19: condensor cooling water/air inlet temperature at 5th measured point | B19: ϑcond;in;5 | C19: °C | D19: 35 | E19: 35 | F19: local | G19: No
F21: Formula ref | G21: Formula
A22: Coefficient for the calculation of compression chiller characteristics | B22: C1 | C22: - | D22: =MMULT(J11:M14,O6:O9) -> 1.819786871 | E22: =MMULT(J11:M14,P6:P9) -> -1.065814104e-14 | F22: Formula (1)
A23: Coefficient for the calculation of compression chiller characteristics | B23: C2 | C23: - | D23: -3.931236625 | E23: 8.881784197e-15
A24: Coefficient for the calculation of compression chiller characteristics | B24: C3 | C24: - | D24: 2.465291918 | E24: 0.2962962963
A25: Coefficient for the calculation of compression chiller characteristics | B25: C4 | C25: - | D25: 0.08292588029 | E25: 0.4148148148
A26: Corrective temperature difference | B26: Dϑcorr | C26: K | D26: =(D11/D17*D13-D19)/(1-D11/D17)+D18 -> 14.12389381 | E26: 20 | F26: Formula (2)

Sheet Process_design_data
A1: Example of process design data. In a simple structure, this can be connected directly to the "method_input" sheet where this data is required. In this example spreadsheet the "Method input" is linked to the detailed input.
A6: Process design data (qualitative)
A8: System type
A9: 2 | C9: =INDEX(C11:C12,A9) -> DX
A11: Water based system | C11: Water
A12: Direct expansion system | C12: DX
A15: Emitter type
A16: 1 | B16: DX_CLG_DIS_TYPE | C16: =INDEX(C18:C20,A16) -> ZONE_BASED
A18: zone based emitters | C18: ZONE_BASED
A19: air based distribution | C19: AIR_BASED
A22: Control of the cooling generation outlet temperature
A23: 2 | B23: CLG_GEN_TMP_CTRL | C23: =INDEX(C25:C26,A23) -> VARIABLE
A25: Constant temperature in the cooling generation plant | C25: CONST
A26: Variable temperature in the cooling generation plant | C26: VARIABLE
A29: Control of the chilled water flow temperature of the total distribution system
A30: 2 | B30: CLG_DISTR_TMP_CTRL | C30: =INDEX(C32:C33,A30) -> ODA_COMP
A32: constant supply temperature | C32: CONST
A33: Variable set point with outdoor temperature compensation | C33: ODA_COMP

Sheet Data_catalogue_example
A1: EXAMPLE OF A PRODUCT DATA CATALOGUE Product descriptive data is used to filter the actual catalogue. Unsuitable prioducts are indicated by "Non available" The desired product in the catalogue is then selected via the main list --> alla data is available with one click. NOTE: Default data are also part of the catalogue. This sample catalogue is connected to the "Method input" sheet. NOTE: This highlights the high importance of the user interface and of a correct data input structuring. | J1: DATA FOR EACH BOILER | W1: SELECTION OF BOILERS COMPATIBLE WITH THE QUALITATIVE DESCRIPTION
A4: Product descriptive data (qualitative)
A6: Boiler use
A7: 1 | C7: BLR_USE | D7: =INDEX(D9:D11,A7) -> BLR_USE_H
A9: Heating | D9: BLR_USE_H
A10: Domestic hot water | D10: BLR_USE_DHW
A11: All | D11: BLR_USE_ALL
A14: Fuel
A15: 1 | C15: BLR_FUEL | D15: =INDEX(D17:D19,A15) -> BLR_FUEL_GAS
A16: Values
A17: Gas | D17: BLR_FUEL_GAS
A18: Oil | D18: BLR_FUEL_OIL
A19: All | D19: BLR_FUEL_ALL
A22: Boiler type, condensing / non condensing
A23: 2 | C23: BLR_COND | D23: =INDEX(D25:D26,A23) -> BLR_COND_NO
A24: Values
A25: Condensing | D25: BLR_COND_YES
A26: Non condensing | D26: BLR_COND_NO
A29: Product technical data
A31: Generator output at full load; | E31: ФPn | F31: kW | G31: 60
A34: Boiler product data | C34: BLR_DATA | D34: =INDEX(D38:D49,C36) -> BLR_DATA_GAS_LT
C36: 2
A37: Values | W37: Display ? | X37: Condensing ? | Z37: Fuel ? | AB37: Condition 3? | AD37: Condition 4?
A38: =IF(W38,B38,"NOT COMPATIBLE") -> Gas, standard, minimum value | B38: Gas, standard, minimum value | D38: BLR_DATA_GAS_STD | W38: =AND(X38,Z38,AB38,AD38) -> TRUE | X38: =$D$23=Y38 -> TRUE | Y38: BLR_COND_NO | Z38: =OR($D$15=$D$19,$D$15=AA38) -> TRUE | AA38: BLR_FUEL_GAS | AB38: TRUE | AD38: TRUE
A39: =IF(W39,B39,"NOT COMPATIBLE") -> Gas, low temperature, minimum value | B39: Gas, low temperature, minimum value | D39: BLR_DATA_GAS_LT | W39: =AND(X39,Z39,AB39,AD39) -> TRUE | X39: =$D$23=Y39 -> TRUE | Y39: BLR_COND_NO | Z39: TRUE | AA39: BLR_FUEL_GAS | AB39: TRUE | AD39: TRUE
A40: NOT COMPATIBLE | B40: Gas, Condensing, minimum value | D40: BLR_DATA_GAS_CND | W40: FALSE | X40: FALSE | Y40: BLR_COND_YES | Z40: TRUE | AA40: BLR_FUEL_GAS | AB40: TRUE | AD40: TRUE
A41: NOT COMPATIBLE | B41: Oil, standard, minimum value | D41: BLR_DATA_OIL_STD | W41: FALSE | X41: TRUE | Y41: BLR_COND_NO | Z41: FALSE | AA41: BLR_FUEL_OIL | AB41: TRUE | AD41: TRUE
A42: NOT COMPATIBLE | B42: Oil, low temperature, minimum value | D42: BLR_DATA_OIL_LT | W42: FALSE | X42: TRUE | Y42: BLR_COND_NO | Z42: FALSE | AA42: BLR_FUEL_OIL | AB42: TRUE | AD42: TRUE
A43: NOT COMPATIBLE | B43: Oil, condensing, minimum value | D43: BLR_DATA_OIL_CND | W43: FALSE | X43: FALSE | Y43: BLR_COND_YES | Z43: FALSE | AA43: BLR_FUEL_OIL | AB43: TRUE | AD43: TRUE
A44: NOT COMPATIBLE | B44: Default national: 1 - old oil boiler | D44: BLR_DATA_NAT_1 | W44: FALSE | X44: TRUE | Y44: BLR_COND_NO | Z44: FALSE | AA44: BLR_FUEL_OIL | AB44: TRUE | AD44: TRUE
A45: Default national: 2 - old gas boiler | B45: Default national: 2 - old gas boiler | D45: BLR_DATA_NAT_2 | W45: TRUE | X45: TRUE | Y45: BLR_COND_NO | Z45: TRUE | AA45: BLR_FUEL_GAS | AB45: TRUE | AD45: TRUE
A46: Default national: 3 - new boiler | B46: Default national: 3 - new boiler | D46: BLR_DATA_NAT_3 | W46: TRUE | X46: TRUE | Y46: BLR_COND_NO | Z46: TRUE | AA46: BLR_FUEL_GAS | AB46: TRUE | AD46: TRUE
A47: Make 1 boiler 1 gas (catalogue) | B47: Make 1 boiler 1 gas (catalogue) | D47: BLR_DATA_CAT_01 | W47: TRUE | X47: TRUE | Y47: BLR_COND_NO | Z47: TRUE | AA47: BLR_FUEL_GAS | AB47: TRUE | AD47: TRUE
A48: NOT COMPATIBLE | B48: Make 1 boiler 2 oil (catalogue) | D48: BLR_DATA_CAT_02 | W48: FALSE | X48: TRUE | Y48: BLR_COND_NO | Z48: FALSE | AA48: BLR_FUEL_OIL | AB48: TRUE | AD48: TRUE
A49: Custom values | B49: Custom values | D49: BLR_DATA_USR | W49: TRUE | X49: TRUE | Y49: BLR_COND_NO | Z49: TRUE | AA49: BLR_FUEL_GAS | AB49: TRUE | AD49: TRUE
A52: System design data
A54: Localisation | C54: LOC | D54: =INDEX(D57:D60,C55) -> LOC_INT
C55: 1
A56: Values
A57: Heated space | D57: LOC_INT
A58: Unheated space | D58: LOC_UNH
A59: Boiler room | D59: LOC_BLR
A60: External | D60: LOC_EXT
A63: Operating conditions
A66: Direct connection
A67: Independent flow rate
A68: Heat exchanger
A69: Last option
A72: Description | C72: Variable TAG | D72: Option tag | E72: Symbol | F72: Unit | G72: Value | H72: Range | J72: =+D38 -> BLR_DATA_GAS_STD | K72: =+D39 -> BLR_DATA_GAS_LT | L72: =+D40 -> BLR_DATA_GAS_CND | M72: =+D41 -> BLR_DATA_OIL_STD | N72: =+D42 -> BLR_DATA_OIL_LT | O72: =+D43 -> BLR_DATA_OIL_CND | P72: =+D44 -> BLR_DATA_NAT_1 | Q72: =+D45 -> BLR_DATA_NAT_2 | R72: =+D46 -> BLR_DATA_NAT_3 | S72: =+D47 -> BLR_DATA_CAT_01 | T72: =+D48 -> BLR_DATA_CAT_02 | U72: =+D49 -> BLR_DATA_USR
A73: generator output at full load; | E73: ФPn | F73: kW | G73: =INDEX(J73:U73,1,$C$36) -> 60 | J73: =+$G$31 -> 60 | K73: 60 | L73: 60 | M73: 60 | N73: 60 | O73: 60 | P73: 60 | Q73: 60 | R73: 60 | S73: 45 | T73: 30 | U73: =+$G$31 -> 60
A74: Boiler type | G74: =INDEX(J74:U74,1,$C$36) -> BLR_COND_NO | J74: BLR_COND_NO | K74: BLR_COND_NO | L74: BLR_COND_YES | M74: BLR_COND_NO | N74: BLR_COND_NO | O74: BLR_COND_YES | P74: BLR_COND_NO | Q74: BLR_COND_NO | R74: BLR_COND_NO | S74: BLR_COND_NO | T74: BLR_COND_NO | U74: BLR_COND_YES
A75: Fuel type | G75: =INDEX(J75:U75,1,$C$36) -> BLR_FUEL_GAS | J75: BLR_FUEL_GAS | K75: BLR_FUEL_GAS | L75: BLR_FUEL_GAS | M75: BLR_FUEL_OIL | N75: BLR_FUEL_OIL | O75: BLR_FUEL_OIL | P75: BLR_FUEL_OIL | Q75: BLR_FUEL_GAS | R75: BLR_FUEL_GAS | S75: BLR_FUEL_GAS | T75: BLR_FUEL_OIL | U75: BLR_FUEL_GAS
A76: CE marking | G76: =INDEX(J76:U76,1,$C$36) -> BLR_CE_YES | J76: BLR_CE_YES | K76: BLR_CE_YES | L76: BLR_CE_YES | M76: BLR_CE_YES | N76: BLR_CE_YES | O76: BLR_CE_YES | P76: BLR_CE_YES | Q76: BLR_CE_YES | R76: BLR_CE_YES | S76: BLR_CE_YES | T76: BLR_CE_NO | U76: BLR_CE_YES
A77: Limited power | E77: ФPn,ltd | F77: kW | J77: =IF(J73>400,400,J73) -> 60 | K77: =IF(K73>400,400,K73) -> 60 | L77: 60 | M77: 60 | N77: 60 | O77: 60 | P77: 60 | Q77: 60 | R77: 60 | S77: 45 | T77: 30 | U77: 60
E78: C1 | F78: % | J78: 85 | K78: 88 | L78: 94 | M78: 85 | N78: 88 | O78: 94 | P78: 92 | Q78: 91 | R78: 93
E79: C2 | F79: % | J79: 2 | K79: 1.5 | L79: 1 | M79: 2 | N79: 1.5 | O79: 1 | P79: 0 | Q79: 0 | R79: 0
A80: generator efficiency at full load; | E80: ηgnr,Pn | F80: % | G80: =INDEX(J80:U80,1,$C$36) -> 90.66722688 | J80: =J78+J79*LOG10(J77) -> 88.5563025 | K80: =K78+K79*LOG10(K77) -> 90.66722688 | L80: 95.77815125 | M80: 88.5563025 | N80: 90.66722688 | O80: 95.77815125 | P80: 92 | Q80: 91 | R80: 93 | S80: 94 | T80: 92 | U80: 93
A81: generator output at intermediate load; | E81: ФPint | F81: kW | G81: =INDEX(J81:U81,1,$C$36) -> 18 | J81: =+J73*0.3 -> 18 | K81: =+K73*0.3 -> 18 | L81: 18 | M81: =+M73*0.3 -> 18 | N81: =+N73*0.3 -> 18 | O81: =+O73*0.3 -> 18 | P81: 18 | Q81: 18 | R81: 18 | S81: 13.5 | T81: 9 | U81: 18
E82: C3 | F82: % | J82: 81.5 | K82: 89 | L82: 98 | M82: 81.5 | N82: 89 | O82: =98/1.05 -> 93.33333333 | P82: 90 | Q82: 89 | R82: 91
E83: C4 | F83: % | J83: 3 | K83: 1.5 | L83: 1 | M83: 3 | N83: 1.5 | O83: =1/1.05 -> 0.9523809524 | P83: 0 | Q83: 0 | R83: 0
A84: generator efficiency at intermediate load; | E84: ηgnr,Pint | F84: % | G84: =INDEX(J84:U84,1,$C$36) -> 91.66722688 | J84: =J82+J83*LOG10(J77) -> 86.83445375 | K84: =K82+K83*LOG10(K77) -> 91.66722688 | L84: 99.77815125 | M84: 86.83445375 | N84: 91.66722688 | O84: 95.02681071 | P84: 90 | Q84: 89 | R84: 91 | S84: 94 | T84: 92 | U84: 93
E85: C5 | F85: % | J85: 8.5 | K85: 5 | L85: 4.8 | M85: 8.5 | N85: 5 | O85: 4.8 | P85: 5 | Q85: 5 | R85: 5
E86: C6 | F86: % | J86: -0.4 | K86: -0.35 | L86: -0.35 | M86: -0.4 | N86: -0.35 | O86: -0.35 | P86: -0.35 | Q86: -0.35 | R86: -0.35
A87: stand-by heat loss at test temperature difference Dθi,test; | E87: Фgnr,ls,P0 | F87: kW | G87: =INDEX(J87:U87,1,$C$36) -> 0.7157614713 | J87: =+J73*(J85/100)*(J73^J86) -> 0.9915387147 | K87: 0.7157614713 | L87: 0.6871310125 | M87: =+M73*(M85/100)*(M73^M86) -> 0.9915387147 | N87: =+N73*(N85/100)*(N73^N86) -> 0.7157614713 | O87: =+O73*(O85/100)*(O73^O86) -> 0.6871310125 | P87: 0.7157614713 | Q87: 0.7157614713 | R87: 0.7157614713 | S87: 0.5 | T87: 0.6 | U87: 0.4
E88: C7 | F88: W | J88: 0 | K88: 0 | L88: 0 | M88: 0 | N88: 0 | O88: 0 | P88: 0 | Q88: 0 | R88: 0
E89: C8 | F89: W | J89: 45 | K89: 45 | L89: 45 | M89: 45 | N89: 45 | O89: 45 | P89: 45 | Q89: 45 | R89: 45
E90: n | F90: - | J90: 0.48 | K90: 0.48 | L90: 0.48 | M90: 0.48 | N90: 0.48 | O90: 0.48 | P90: 0.48 | Q90: 0.48 | R90: 0.48
A91: power consumption of auxiliary devices at full load; | E91: Paux,gnr,Pn | F91: kW | G91: =INDEX(J91:U91,1,$C$36) -> 0.3211627101 | J91: =(+J88+J89*J73^J90)/1000 -> 0.3211627101 | K91: 0.3211627101 | L91: 0.3211627101 | M91: =(+M88+M89*M73^M90)/1000 -> 0.3211627101 | N91: =(+N88+N89*N73^N90)/1000 -> 0.3211627101 | O91: =(+O88+O89*O73^O90)/1000 -> 0.3211627101 | P91: 0.3211627101 | Q91: 0.3211627101 | R91: 0.3211627101 | S91: 0.3 | T91: 0.4 | U91: 0.6
E92: C7 | F92: W | J92: 0 | K92: 0 | L92: 0 | M92: 0 | N92: 0 | O92: 0 | P92: 0 | Q92: 0 | R92: 0
E93: C8 | F93: W | J93: 15 | K93: 15 | L93: 15 | M93: 15 | N93: 15 | O93: 15 | P93: 15 | Q93: 15 | R93: 15
E94: n | F94: - | J94: 0.48 | K94: 0.48 | L94: 0.48 | M94: 0.48 | N94: 0.48 | O94: 0.48 | P94: 0.48 | Q94: 0.48 | R94: 0.48
A95: power consumption of auxiliary devices at intermediate load; | E95: Paux,gnr,Pint | F95: kW | G95: =INDEX(J95:U95,1,$C$36) -> 0.06006508023 | J95: =(+J92+J93*J81^J94)/1000 -> 0.06006508023 | K95: 0.06006508023 | L95: 0.06006508023 | M95: =(+M92+M93*M81^M94)/1000 -> 0.06006508023 | N95: =(+N92+N93*N81^N94)/1000 -> 0.06006508023 | O95: =(+O92+O93*O81^O94)/1000 -> 0.06006508023 | P95: 0.06006508023 | Q95: 0.06006508023 | R95: 0.06006508023 | S95: 0.1 | T95: 0.07 | U95: 0.05
E96: C7 | F96: W | J96: 15 | K96: 15 | L96: 15 | M96: 15 | N96: 15 | O96: 15 | P96: 15 | Q96: 15 | R96: 15
E97: C8 | F97: W | J97: 0 | K97: 0 | L97: 0 | M97: 0 | N97: 0 | O97: 0 | P97: 0 | Q97: 0 | R97: 0
E98: n | F98: - | J98: 0 | K98: 0 | L98: 0 | M98: 0 | N98: 0 | O98: 0 | P98: 0 | Q98: 0 | R98: 0
A99: stand-by power consumption of auxiliary devices; | E99: Paux,gnr,P0 | F99: kW | G99: =INDEX(J99:U99,1,$C$36) -> 0.015 | J99: =(+J96+J97*J85^J98)/1000 -> 0.015 | K99: 0.015 | L99: 0.015 | M99: 0.015 | N99: 0.015 | O99: 0.015 | P99: 0.015 | Q99: 0.015 | R99: 0.015 | S99: 0 | T99: 0 | U99: 0
A100: auxiliary power when the generation system is inactive | E100: Paux,off | F100: kW | G100: =INDEX(J100:U100,1,$C$36) -> 0 | J100: 0 | K100: 0 | L100: 0 | M100: 0 | N100: 0 | O100: 0 | P100: 0 | Q100: 0 | R100: 0 | S100: 0 | T100: 0 | U100: 0
A101: minimum operating boiler temperature. | E101: θgnr,min | F101: °C | G101: =INDEX(J101:U101,1,$C$36) -> 30 | J101: 50 | K101: 30 | L101: 0 | M101: 50 | N101: 30 | O101: 0 | P101: 50 | Q101: 50 | R101: 50 | S101: 50 | T101: 50 | U101: 50
A102: Recoverable fraction of stand-by losses | E102: fgnr,env | F102: - | G102: =INDEX(J102:U102,1,$C$36) -> 0.5 | J102: 0.5 | K102: 0.5 | L102: 0.5 | M102: 0.5 | N102: 0.5 | O102: 0.5 | P102: 0.5 | Q102: 0.5 | R102: 0.5 | S102: 0.5 | T102: 0.5 | U102: 0.5
A104: correction factor of full-load efficiency; | E104: fcorr,Pn | F104: - | G104: =INDEX(J104:U104,1,$C$36) -> 0.04 | J104: 0.04 | K104: 0.04 | L104: 0.2 | M104: 0.04 | N104: 0.04 | O104: 0.2 | P104: 0.04 | Q104: 0.04 | R104: 0.1 | S104: 0.04 | T104: 0.04 | U104: 0.04
A105: correction factor of intermediate load efficiency; | E105: fcorr,Pint | F105: - | G105: =INDEX(J105:U105,1,$C$36) -> 0.05 | J105: 0.05 | K105: 0.05 | L105: 0.2 | M105: 0.05 | N105: 0.05 | O105: 0.2 | P105: 0.05 | Q105: 0.05 | R105: 0.05 | S105: 0.05 | T105: 0.05 | U105: 0.05
A107: generator average water temperature at test conditions for full load; | E107: θgnr,test,Pn | F107: °C | G107: =INDEX(J107:U107,1,$C$36) -> 70 | J107: 70 | K107: 70 | L107: 70 | M107: 70 | N107: 70 | O107: 70 | P107: 70 | Q107: 70 | R107: 70 | S107: 70 | T107: 70 | U107: 70
A108: generator average water temperature at test conditions for intermediate load; | E108: θgnr,test,Pint | F108: °C | G108: =INDEX(J108:U108,1,$C$36) -> 40 | J108: 50 | K108: 40 | L108: 30 | M108: 50 | N108: 40 | O108: 30 | P108: 50 | Q108: 50 | R108: 50 | S108: 50 | T108: 50 | U108: 50
A109: difference between mean boiler temperature and test room temperature in test conditions; | E109: Dθtest,P0 | F109: °C | G109: =INDEX(J109:U109,1,$C$36) -> 50 | J109: 50 | K109: 50 | L109: 50 | M109: 50 | N109: 50 | O109: 50 | P109: 50 | Q109: 50 | R109: 50 | S109: 50 | T109: 50 | U109: 50
A111: part of the auxiliary energy recovered | E111: frvd,aux | F111: - | G111: =INDEX(J111:U111,1,$C$36) -> 0.75 | J111: 0.75 | K111: 0.75 | L111: 0.75 | M111: 0.75 | N111: 0.75 | O111: 0.75 | P111: 0.75 | Q111: 0.75 | R111: 0.75 | S111: 0.75 | T111: 0.75 | U111: 0.75
A112: part of the nominal electrical power not transmitted to the distribution sub-system | E112: frbl,aux | F112: - | G112: =INDEX(J112:U112,1,$C$36) -> 0.25 | J112: 0.25 | K112: 0.25 | L112: 0.25 | M112: 0.25 | N112: 0.25 | O112: 0.25 | P112: 0.25 | Q112: 0.25 | R112: 0.25 | S112: 0.25 | T112: 0.25 | U112: 0.25
A117: System design data
A118: Installation room temperature; | E118: qi,brm | F118: °C | G118: 15
A119: Temperature reduction factor of install. room | E119: bbrm | F119: - | G119: 0.7

Sheet Input_series
A1: Load here the value of input variables for each time-step (time series) Set the number of input data for each time steps and the number of time step before running The macro from sheet "Output series". Local constant data may be input via the sheets "Constants"
A3: Time series for data input
A4: Settings
A5: Number of input data | C5: 24
A6: Number of time steps | C6: 7
A8: Description | B8: Calculation time interval | C8: Ambient air temperature | D8: Sensible energy need for cooling in thermal zone j=1 | E8: Sensible energy need for cooling in thermal zone j=2 | F8: Sensible energy need for cooling in thermal zone j=3 | G8: Sensible energy need for cooling in thermal zone j=4 | H8: Required AHU cooling coil output for ventilation system k=1 | I8: Required AHU cooling coil output for ventilation system k=2 | J8: Required cooling air supply temperature | K8: Heat losses of cooling emission in thermal zone j=1 | L8: Heat losses of cooling emission in thermal zone j=2 | M8: Heat losses of cooling emission in thermal zone j=3 | N8: Heat losses of cooling emission in thermal zone j=4 | O8: Auxiliary energy for cooling emission system in thermal zone j=1 | P8: Auxiliary energy for cooling emission system in thermal zone j=2 | Q8: Auxiliary energy for cooling emission system in thermal zone j=3 | R8: Auxiliary energy for cooling emission system in thermal zone j=4 | S8: Portion of cooling distribution auxiliary energy going to the chilled water for distribution system | T8: Equivalent internal temperature | U8: Cooling energy extracted by the cooling generation system | V8: Chilled water outlet temperature from the cooling generation | W8: Electric energy input to the cooling generation system | X8: Heat input to the absorption cooling generation | Y8: Auxiliary energy for cooling generation system
A9: Symbol | B9: tc,i | C9: ϑe | D9: QC;nd;zt;j | E9: QC;nd;zt;j | F9: QC;nd;zt;j;i | G9: QC;nd;zt;j;i | H9: QC;ahu,k;out;req;i | I9: QC;ahu,k;out;req;i | J9: JSUP;C;req | K9: QC;em,ls;zt,j | L9: QC;em,ls;zt,j | M9: QC;em,ls;zt,j | N9: QC;em,ls;zt,j | O9: WC;aux;em;j | P9: WC;aux;em;j | Q9: WC;aux;em;j | R9: WC;aux;em;j | S9: fwat;C;dis;aux | T9: Jint;inc | U9: QC;gen;in | V9: ϑC;gen;out | W9: EC,gen,el;in | X9: QH;C;gen;abs;in | Y9: WC;aux;gen
A10: Unit | B10: h | C10: °C | D10: kWh | E10: kWh | F10: kWh | G10: kWh | H10: kWh | I10: kWh | J10: °C | K10: kWh | L10: kWh | M10: kWh | N10: kWh | O10: kWh | P10: kWh | Q10: kWh | R10: kWh | S10: - | T10: °C | U10: kWh | V10: °C | W10: kWh | X10: kWh | Y10: kWh
A11: Origin | B11: M1-9 | C11: M1-13 | D11: M2-2 | E11: M2-2 | F11: M2-2 | G11: M2-2 | H11: M5-8 | I11: M5-8 | J11: M5-8 | K11: M4-5 | L11: M4-5 | M11: M4-5 | N11: M4-5 | O11: M4-5 | P11: M4-5 | Q11: M4-5 | R11: M4-5 | S11: M4-6 | T11: M4-5 | U11: M4-8 | V11: M4-8 | W11: M4-8 | X11: M4-8 | Y11: M4-8
A13: Time stamp | C13: VALUES
A14: 1 | B14: =31*24 -> 744 | C14: 0.5 | D14: 0 | E14: 0 | F14: 0 | G14: 0 | H14: 0 | I14: 0 | J14: 16 | K14: =0.05*D14 -> 0 | L14: =0.05*E14 -> 0 | M14: =0.05*F14 -> 0 | N14: =0.05*G14 -> 0 | O14: =0.01*D14 -> 0 | P14: =0.01*E14 -> 0 | Q14: =0.01*F14 -> 0 | R14: =0.01*G14 -> 0 | S14: 0.5 | T14: 24 | U14: =Output_series!K18 -> 0 | V14: =Output_series!J18 -> 24 | W14: =U14/4 -> 0 | X14: 0 | Y14: 0 | AA14: =0.72*O14 -> 0 | AB14: =0.36*P14 -> 0 | AD14: =0.72*Q14 -> 0 | AE14: =0.36*R14 -> 0
A15: 2 | B15: =28*24 -> 672 | C15: 1.8 | D15: 0 | E15: 0 | F15: 0 | G15: 0 | H15: 0 | I15: 0 | J15: 16 | K15: =0.05*D15 -> 0 | L15: =0.05*E15 -> 0 | M15: =0.05*F15 -> 0 | N15: =0.05*G15 -> 0 | O15: =0.01*D15 -> 0 | P15: =0.01*E15 -> 0 | Q15: =0.01*F15 -> 0 | R15: =0.01*G15 -> 0 | S15: 0.5 | T15: 24 | U15: =Output_series!K19 -> 0 | V15: =Output_series!J19 -> 24 | W15: =U15/4 -> 0 | X15: 0 | Y15: 0 | AA15: =0.72*O15 -> 0 | AB15: =0.36*P15 -> 0 | AD15: =0.72*Q15 -> 0 | AE15: =0.36*R15 -> 0
A16: 3 | B16: =31*24 -> 744 | C16: 5.7 | D16: 0 | E16: 0 | F16: 0 | G16: 0 | H16: 0 | I16: 0 | J16: 16 | K16: =0.05*D16 -> 0 | L16: =0.05*E16 -> 0 | M16: =0.05*F16 -> 0 | N16: =0.05*G16 -> 0 | O16: =0.01*D16 -> 0 | P16: =0.01*E16 -> 0 | Q16: =0.01*F16 -> 0 | R16: =0.01*G16 -> 0 | S16: 0.5 | T16: 24 | U16: =Output_series!K20 -> 0 | V16: =Output_series!J20 -> 24 | W16: 0 | X16: 0 | Y16: 0 | AA16: =0.72*O16 -> 0 | AB16: =0.36*P16 -> 0 | AD16: =0.72*Q16 -> 0 | AE16: =0.36*R16 -> 0
A17: 4 | B17: =30*24 -> 720 | C17: 8.8 | D17: 0 | E17: 0 | F17: 0 | G17: 0 | H17: 0 | I17: 0 | J17: 16 | K17: =0.05*D17 -> 0 | L17: =0.05*E17 -> 0 | M17: =0.05*F17 -> 0 | N17: =0.05*G17 -> 0 | O17: =0.01*D17 -> 0 | P17: =0.01*E17 -> 0 | Q17: =0.01*F17 -> 0 | R17: =0.01*G17 -> 0 | S17: 0.5 | T17: 24 | U17: =Output_series!K21 -> 0 | V17: =Output_series!J21 -> 24 | W17: 0 | X17: 0 | Y17: 0 | AA17: =0.72*O17 -> 0 | AB17: =0.36*P17 -> 0 | AD17: =0.72*Q17 -> 0 | AE17: =0.36*R17 -> 0
A18: 5 | B18: =31*24 -> 744 | C18: 13.9 | D18: 0.41858804 | E18: 0 | F18: 0.362576596 | G18: 0 | H18: 0 | I18: 0 | J18: 16 | K18: =0.05*D18 -> 0.020929402 | L18: =0.05*E18 -> 0 | M18: =0.05*F18 -> 0.0181288298 | N18: =0.05*G18 -> 0 | O18: =0.01*D18 -> 0.0041858804 | P18: =0.01*E18 -> 0 | Q18: =0.01*F18 -> 0.00362576596 | R18: =0.01*G18 -> 0 | S18: 0.5 | T18: 25 | U18: =Output_series!K22 -> 0.8202228678 | V18: =Output_series!J22 -> 25 | W18: 0.2050557169 | X18: 0 | Y18: 0 | AA18: =0.72*O18 -> 0.003013833888 | AB18: =0.36*P18 -> 0 | AD18: =0.72*Q18 -> 0.002610551491 | AE18: =0.36*R18 -> 0
A19: 6 | B19: =30*24 -> 720 | C19: 16.7 | D19: 110.977554 | E19: 16.32389642 | F19: 92.40697975 | G19: 11.59143043 | H19: 0 | I19: 0 | J19: 16 | K19: =0.05*D19 -> 5.548877698 | L19: =0.05*E19 -> 0.816194821 | M19: =0.05*F19 -> 4.620348987 | N19: =0.05*G19 -> 0.5795715214 | O19: =0.01*D19 -> 1.10977554 | P19: =0.01*E19 -> 0.1632389642 | Q19: =0.01*F19 -> 0.9240697975 | R19: =0.01*G19 -> 0.1159143043 | S19: 0.5 | T19: 26 | U19: =Output_series!K23 -> 242.8648536 | V19: =Output_series!J23 -> 26 | W19: 60.71621339 | X19: 0 | Y19: 0 | AA19: =0.72*O19 -> 0.7990383885 | AB19: =0.36*P19 -> 0.05876602711 | AD19: =0.72*Q19 -> 0.6653302542 | AE19: =0.36*R19 -> 0.04172914954
A20: 7 | B20: =31*24 -> 744 | C20: 19 | D20: 72.81108018 | E20: 25.59998586 | F20: 66.13036914 | G20: 22.00563783 | H20: 0 | I20: 0 | J20: 16 | K20: =0.05*D20 -> 3.640554009 | L20: =0.05*E20 -> 1.279999293 | M20: =0.05*F20 -> 3.306518457 | N20: =0.05*G20 -> 1.100281891 | O20: =0.01*D20 -> 0.7281108018 | P20: =0.01*E20 -> 0.2559998586 | Q20: =0.01*F20 -> 0.6613036914 | R20: =0.01*G20 -> 0.2200563783 | S20: 0.5 | T20: 26 | U20: =Output_series!K24 -> 195.8744267 | V20: =Output_series!J24 -> 26 | W20: 48.96860666 | X20: 0 | Y20: 0 | AA20: =0.72*O20 -> 0.5242397773 | AB20: =0.36*P20 -> 0.0921599491 | AD20: =0.72*Q20 -> 0.4761386578 | AE20: =0.36*R20 -> 0.07922029618
A21: 8 | B21: =31*24 -> 744 | C21: 18.8 | D21: 67.42157092 | E21: 26.24690338 | F21: 54.60177164 | G21: 20.02640116 | H21: 0 | I21: 0 | J21: 16 | K21: =0.05*D21 -> 3.371078546 | L21: =0.05*E21 -> 1.312345169 | M21: =0.05*F21 -> 2.730088582 | N21: =0.05*G21 -> 1.001320058 | O21: =0.01*D21 -> 0.6742157092 | P21: =0.01*E21 -> 0.2624690338 | Q21: =0.01*F21 -> 0.5460177164 | R21: =0.01*G21 -> 0.2002640116 | S21: 0.5 | T21: 26 | U21: =Output_series!K25 -> 176.7114795 | V21: =Output_series!J25 -> 26 | W21: 44.17786987 | X21: 0 | Y21: 0 | AA21: =0.72*O21 -> 0.4854353106 | AB21: =0.36*P21 -> 0.09448885218 | AD21: =0.72*Q21 -> 0.3931327558 | AE21: =0.36*R21 -> 0.07209504418
A22: 9 | B22: =30*24 -> 720 | C22: 14.4 | D22: 1.868553972 | E22: 0 | F22: 1.91385731 | G22: 0 | H22: 0 | I22: 0 | J22: 16 | K22: =0.05*D22 -> 0.0934276986 | L22: =0.05*E22 -> 0 | M22: =0.05*F22 -> 0.0956928655 | N22: =0.05*G22 -> 0 | O22: =0.01*D22 -> 0.01868553972 | P22: =0.01*E22 -> 0 | Q22: =0.01*F22 -> 0.0191385731 | R22: =0.01*G22 -> 0 | S22: 0.5 | T22: 25 | U22: =Output_series!K26 -> 3.971531846 | V22: =Output_series!J26 -> 25 | W22: 0.9928829615 | X22: 0 | Y22: 0 | AA22: =0.72*O22 -> 0.0134535886 | AB22: =0.36*P22 -> 0 | AD22: =0.72*Q22 -> 0.01377977263 | AE22: =0.36*R22 -> 0
A23: 10 | B23: =31*24 -> 744 | C23: 10.2 | D23: 0 | E23: 0 | F23: 0 | G23: 0 | H23: 0 | I23: 0 | J23: 16 | K23: =0.05*D23 -> 0 | L23: =0.05*E23 -> 0 | M23: =0.05*F23 -> 0 | N23: =0.05*G23 -> 0 | O23: =0.01*D23 -> 0 | P23: =0.01*E23 -> 0 | Q23: =0.01*F23 -> 0 | R23: =0.01*G23 -> 0 | S23: 0.5 | T23: 24 | U23: =Output_series!K27 -> 0 | V23: =Output_series!J27 -> 24 | W23: 0 | X23: 0 | Y23: 0 | AA23: =0.72*O23 -> 0 | AB23: =0.36*P23 -> 0 | AD23: =0.72*Q23 -> 0 | AE23: =0.36*R23 -> 0
A24: 11 | B24: =30*24 -> 720 | C24: 4.5 | D24: 0 | E24: 0 | F24: 0 | G24: 0 | H24: 0 | I24: 0 | J24: 16 | K24: =0.05*D24 -> 0 | L24: =0.05*E24 -> 0 | M24: =0.05*F24 -> 0 | N24: =0.05*G24 -> 0 | O24: =0.01*D24 -> 0 | P24: =0.01*E24 -> 0 | Q24: =0.01*F24 -> 0 | R24: =0.01*G24 -> 0 | S24: 0.5 | T24: 24 | U24: =Output_series!K28 -> 0 | V24: =Output_series!J28 -> 24 | W24: 0 | X24: 0 | Y24: 0 | AA24: =0.72*O24 -> 0 | AB24: =0.36*P24 -> 0 | AD24: =0.72*Q24 -> 0 | AE24: =0.36*R24 -> 0
A25: 12 | B25: =31*24 -> 744 | C25: 2 | D25: 0 | E25: 0 | F25: 0 | G25: 0 | H25: 0 | I25: 0 | J25: 16 | K25: =0.05*D25 -> 0 | L25: =0.05*E25 -> 0 | M25: =0.05*F25 -> 0 | N25: =0.05*G25 -> 0 | O25: =0.01*D25 -> 0 | P25: =0.01*E25 -> 0 | Q25: =0.01*F25 -> 0 | R25: =0.01*G25 -> 0 | S25: 0.5 | T25: 24 | U25: =Output_series!K29 -> 0 | V25: =Output_series!J29 -> 24 | W25: 0 | X25: 0 | Y25: 0 | AA25: =0.72*O25 -> 0 | AB25: =0.36*P25 -> 0 | AD25: =0.72*Q25 -> 0 | AE25: =0.36*R25 -> 0
U26: =SUM(U14:U25) -> 620.2425144 | W26: =SUM(W14:W25) -> 155.0606286

Sheet Method_input
A1: THIS IS A MANDATORY SHEET All input data for the method shall be listed here. In the simplest version, values for data input in column D (both green and blue background) may be inserted manually. Varying data (green background) can be fed from the "input_series" sheet. In this sample data sheet, product data (blue background) is linked to a sample catalogue built in the "Detailed_input" sheet
A4: Name | B4: Symbol | C4: Unit | D4: Values | E4: Origin | F4: Varying | G4: Notes
A5: Operating conditions data
A6: Calculation time interval | B6: tc,i | C6: h | D6: 744 | E6: M1-9 | F6: No
A7: Ambient air temperature | B7: ϑe | C7: °C | D7: 19 | E7: M1-13 | F7: Yes
A8: Sensible energy need for cooling in thermal zone j=1 | B8: QC;nd;zt;j | C8: kWh | D8: 72.81108018 | E8: M2-2 | F8: Yes
A9: Sensible energy need for cooling in thermal zone j=2 | B9: QC;nd;zt;j | C9: kWh | D9: 25.59998586 | E9: M2-2 | F9: Yes
A10: Sensible energy need for cooling in thermal zone j=3 | B10: QC;nd;zt;j;i | C10: kWh | D10: 66.13036914 | E10: M2-2 | F10: Yes
A11: Sensible energy need for cooling in thermal zone j=4 | B11: QC;nd;zt;j;i | C11: kWh | D11: 22.00563783 | E11: M2-2 | F11: Yes
A12: Required AHU cooling coil output for ventilation system k=1 | B12: QC;ahu,k;out;req;i | C12: kWh | D12: 0 | E12: M5-8 | F12: yes
A13: Required AHU cooling coil output for ventilation system k=2 | B13: QC;ahu,k;out;req;i | C13: kWh | D13: 0 | E13: M5-8 | F13: yes
A14: Required cooling air supply temperature | B14: JSUP;C;req | C14: °C | D14: 16 | E14: M5-8 | F14: yes
A15: Heat losses of cooling emission in thermal zone j=1 | B15: QC;em,ls;zt,j | C15: kWh | D15: 3.640554009 | E15: M4-5 | F15: yes
A16: Heat losses of cooling emission in thermal zone j=2 | B16: QC;em,ls;zt,j | C16: kWh | D16: 1.279999293 | E16: M4-5 | F16: yes
A17: Heat losses of cooling emission in thermal zone j=3 | B17: QC;em,ls;zt,j | C17: kWh | D17: 3.306518457 | E17: M4-5 | F17: yes
A18: Heat losses of cooling emission in thermal zone j=4 | B18: QC;em,ls;zt,j | C18: kWh | D18: 1.100281891 | E18: M4-5 | F18: yes
A19: Auxiliary energy for cooling emission system in thermal zone j=1 | B19: WC;aux;em;j | C19: kWh | D19: 0.7281108018 | E19: M4-5 | F19: yes
A20: Auxiliary energy for cooling emission system in thermal zone j=2 | B20: WC;aux;em;j | C20: kWh | D20: 0.2559998586 | E20: M4-5 | F20: yes
A21: Auxiliary energy for cooling emission system in thermal zone j=3 | B21: WC;aux;em;j | C21: kWh | D21: 0.6613036914 | E21: M4-5 | F21: yes
A22: Auxiliary energy for cooling emission system in thermal zone j=4 | B22: WC;aux;em;j | C22: kWh | D22: 0.2200563783 | E22: M4-5 | F22: yes
A23: Portion of cooling distribution auxiliary energy going to the chilled water for distribution system | B23: fwat;C;dis;aux | C23: - | D23: 0.5 | E23: M4-6 | F23: yes
A24: Equivalent internal temperature | B24: Jint;inc | C24: °C | D24: 26 | E24: M4-5 | F24: yes
A25: Cooling energy extracted by the cooling generation system | B25: QC;gen;in | C25: kWh | D25: 195.8744267 | E25: M4-8 | F25: yes
A26: Chilled water outlet temperature from the cooling generation | B26: ϑC;gen;out | C26: °C | D26: 26 | E26: M4-8 | F26: yes
A27: Electric energy input to the cooling generation system | B27: EC,gen,el;in | C27: kWh | D27: 48.96860666 | E27: M4-8 | F27: yes
A28: Heat input to the absorption cooling generation | B28: QH;C;gen;abs;in | C28: kWh | D28: 0 | E28: M4-8 | F28: yes
A29: Auxiliary energy for cooling generation system | B29: WC;aux;gen | C29: kWh | D29: 0 | E29: M4-8 | F29: Yes
A31: System design data
A32: Process design
A33: Control of the cooling generation outlet temperature | B33: DX_CLG_DIS_TYPE | D33: =Process_design_data!C16 -> ZONE_BASED
A34: Cooling generation outlet temperature setpoint | B34: ϑC;gen;out;set | C34: °C | D34: 6 | E34: local
A35: Maximum inlet temperature setpoint of the total distribution system for ODA_COMP control option | B35: ϑC;dis;flw;set;max | C35: °C | D35: 16 | E35: local
A36: Minimum inlet temperature setpoint of the total distribution system for ODA_COMP control option | B36: ϑC;dis;flw;set;min | C36: °C | D36: 8 | E36: local
A37: Slope factor of the total distribution system for ODA_COMP control option | B37: fe | C37: - | D37: -0.8 | E37: local
A38: Temperature offset of the total distribution system for ODA_COMP control option | B38: DJoff | C38: K | D38: 28 | E38: local
A39: Factor for the cooling distribution losses (simplified calculation) | B39: fC;ls;dis | C39: - | D39: 0.1 | E39: local
A40: Factor for the cooling distribution auxiliary energy (simplified calculation) | B40: fC;aux;dis | C40: - | D40: 0.01 | E40: local
A41: Weighting factor for thermal energy | B41: fW;th | C41: - | D41: 1 | E41: local
A42: Weighting factor for electric energy | B42: fW;el | C42: - | D42: 1 | E42: local
A44: Control type data
A45: Control of the cooling generation outlet temperature | B45: CLG_GEN_TMP_CTRL | D45: =Process_design_data!C23 -> VARIABLE
A46: Control of the chilled water flow temperature of the total distribution system | B46: CLG_DISTR_TMP_CTRL | D46: =Process_design_data!C30 -> ODA_COMP
A48: Constants
A49: Density of water | B49: rwat | C49: kg/m3 | D49: 1000
A50: Specific heat of water | B50: cwat | C50: kWh/kg K | D50: 0.00116

Sheet Method_calculation
A1: THIS IS A MANDATORY SHEET One time step calculation shall be described here. For each calculation step (= 1 row) data for the formula in column D shall be taken from the "Method_input" sheet or previous calculation steps. Include in the column "Formula ref" its number in the standard text. The example is based on EN 15316-4-1:2008 Copy and paste a copy of the equation into column "Formula" Use the column note for information on the calculation
A3: Description | B3: Symbol | C3: Unit | D3: Value | E3: Formula ref | F3: Formula | G3: Notes
A4: Operation conditions calculations
A5: DX systems
A6: Required generation outlet temperature for zone based emitters | B6: JC,gen;out;req | C6: °C | D6: =IF(AND(Process_design_data!C9="DX",Method_input!D33="ZONE_BASED"),Method_input!D24,"-") -> 26 | E6: Formula (1a) | F6: JC,gen;out;req = JC;int;inc | G6: Method output
A7: Required generation outlet temperature for air system based distribution | B7: JC,gen;out;req | C7: °C | D7: =IF(AND(Process_design_data!C9="DX",Method_input!D33="AIR_BASED"),Method_input!D14,"-") -> - | E7: Formula (1b) | F7: JC,gen;out;req = JSUP;C;req | G7: Method output
A8: Water based systems
A9: Required generation outlet temperature if CLG_GEN_TMP_CTRL = CONST | B9: JC,gen;out;req | C9: °C | D9: =IF(AND(Process_design_data!C9="Water",Method_input!D45="CONST"),Method_input!D34,"-") -> - | E9: Formula (1c) | F9: JC,gen;out;req = JC;gen;out;set | G9: Method output
A10: Required generation outlet temperature else | B10: JC,gen;out;req | C10: °C | D10: =IF(AND(Process_design_data!C9="Water",Method_input!D45="VARIABLE"),IF(D12<>"-",D12,D13),"-") -> - | E10: Formula (1d) | F10: JC,gen;out;req = JC;dis;in;flw;req | G10: Method output
A11: Simplified Method
A12: Required inlet temperature of the total distribution system if CLG_DISTR_TMP_CTRL = CONST | B12: ϑC;dis;in;flw;req | C12: °C | D12: =IF(Method_input!D46="CONST",Method_input!D34,"-") -> - | E12: Formula (2a) | F12: ϑC;dis;in;flw;req = ϑC;dis;flw;set
A13: required inlet temperature of the total distribution system if CLG_DISTR_TMP_CTRL = ODA_COMP | B13: ϑC;dis;in;flw;req | C13: °C | D13: =IF(Method_input!D46="ODA_COMP",MIN(Method_input!D35,MAX(Method_input!D36,Method_input!D37*Method_input!D7+Method_input!D38)),"-") -> 12.8 | E13: Formula (2b) | F13: ϑC;dis;in;flw;req = min[ϑC;dis;flw;set;max;; max(ϑC;dis;flw;set;min ; fe × Je + DJoff)]
A14: Energy calculations
A15: Simplified Method
A16: energy really extracted by the from the thermal zone j=1 for DX systems | B16: QC;zt;j | C16: kWh | D16: =IF(AND(Process_design_data!C9="DX",Method_input!D33="AIR_BASED"),"-",MIN(Method_input!D8,IF(D26="-",IF(D23=0,0,Method_input!D8/D23*Method_input!D25),IF(D26=0,0,Method_input!D8/D26*Method_input!D25)))) -> 72.81108018 | E16: Formula (3) | G16: Method output
A17: energy really extracted by the from the thermal zone j=2 for DX systems | B17: QC;zt;j | C17: kWh | D17: =IF(AND(Process_design_data!C9="DX",Method_input!D33="AIR_BASED"),"-",MIN(Method_input!D9,IF(D26="-",IF(D23=0,0,Method_input!D9/D23*Method_input!D25),IF(D26=0,0,Method_input!D9/D26*Method_input!D25)))) -> 25.59998586 | E17: Formula (3) | G17: Method output
A18: energy really extracted by the from the thermal zone j=3 for DX systems | B18: QC;zt;j | C18: kWh | D18: =IF(AND(Process_design_data!C9="DX",Method_input!D33="AIR_BASED"),"-",MIN(Method_input!D10,IF(D26="-",IF(D23=0,0,Method_input!D10/D23*Method_input!D25),IF(D26=0,0,Method_input!D10/D26*Method_input!D25)))) -> 66.13036914 | E18: Formula (3) | G18: Method output
A19: energy really extracted by the from the thermal zone j=4 for DX systems | B19: QC;zt;j | C19: kWh | D19: =IF(AND(Process_design_data!C9="DX",Method_input!D33="AIR_BASED"),"-",MIN(Method_input!D11,IF(D26="-",IF(D23=0,0,Method_input!D11/D23*Method_input!D25),IF(D26=0,0,Method_input!D11/D26*Method_input!D25)))) -> 22.00563783 | E19: Formula (3) | G19: Method output
A20: energy really extracted by the from the air handling unit k=1 | B20: QC;ahu;k;out | C20: kWh | D20: =IF(AND(Process_design_data!C9="DX",Method_input!D33="ZONE_BASED"),"-",MIN(Method_input!D12,IF(D26="-",IF(D24=0,0,Method_input!D12/D24*Method_input!D25),IF(D26=0,0,Method_input!D12/D26*Method_input!D25)))) -> - | E20: Formula (4) | G20: Method output
A21: energy really extracted by the from the air handling unit k=2 | B21: QC;ahu;k;out | C21: kWh | D21: =IF(AND(Process_design_data!C9="DX",Method_input!D33="ZONE_BASED"),"-",MIN(Method_input!D13,IF(D26="-",IF(D24=0,0,Method_input!D13/D24*Method_input!D25),IF(D26=0,0,Method_input!D13/D26*Method_input!D25)))) -> - | E21: Formula (4) | G21: Method output
A22: DX systems
A23: energy to be extracted by the cooling generation system for DX systems | B23: QC;gen;in;req | C23: kWh | D23: =IF(AND(Process_design_data!C9="DX",Method_input!D33="ZONE_BASED"),Method_input!D8+Method_input!D9+Method_input!D10+Method_input!D11+Method_input!D15+Method_input!D16+Method_input!D17+Method_input!D18,"-") -> 195.8744267 | E23: Formula (5a) | G23: Method output
A24: energy to be extracted by the cooling generation system for DX systems | B24: QC;gen;in;req | C24: kWh | D24: =IF(AND(Process_design_data!C9="DX",Method_input!D33="AIR_BASED"),Method_input!D12+Method_input!D13,"-") -> - | E24: Formula (5b) | G24: Method output
A25: Water based systems
A26: Energy to be extracted by the cooling generation system | B26: QC;gen;in;req | C26: kWh | D26: =IF(Process_design_data!C9="DX","-",Method_input!D8+Method_input!D9+Method_input!D15+Method_input!D16+Method_input!D12+Method_input!D10+Method_input!D11+Method_input!D17+Method_input!D18+Method_input!D13+D27+Method_input!D23*D28) -> - | E26: Formula (6)
A27: cooling distribution heat losses | B27: QC;ls;dis | C27: kWh | D27: =IF(Process_design_data!C9="DX","-",Method_input!D39*(Method_input!D8+Method_input!D9+Method_input!D15+Method_input!D16+Method_input!D12+Method_input!D10+Method_input!D11+Method_input!D17+Method_input!D18+Method_input!D13)) -> - | E27: Formula (7)
A28: cooling auxiliary energy | B28: WC;aux;dis | C28: kWh | D28: =IF(Process_design_data!C9="DX","-",Method_input!D40*(Method_input!D8+Method_input!D9+Method_input!D15+Method_input!D16+Method_input!D12+Method_input!D10+Method_input!D11+Method_input!D17+Method_input!D18+Method_input!D13)) -> - | E28: Formula (8) | G28: Method output
A29: Performance expression calculations
A30: annual efficiency of the total cooling system | B30: hC;tot;an | C30: - | D30: =Output_series!O30/Output_series!P30 -> 3.564690807 | E30: Formula (25)
A31: total auxiliary energy for the cooling emission | B31: WC;aux;em | C31: kWh | D31: =Method_input!D19+Method_input!D20+Method_input!D21+Method_input!D22 -> 1.86547073 | E31: Formula (26) | G31: Method output
A32: annual efficiency of the cooling generation system | B32: hC;gen;an | C32: - | D32: =Input_series!U26/Output_series!Q30 -> 3.881281015 | E32: Formula (28) | G32: Method output

Sheet Method_output
A1: THIS IS A MANDATORY SHEET Output of one step calculation shall be indicated here. Each cell in the column value shall be a reference to a single cell in the "Method_calculation" sheet. The macro will take the calculation step results and fill the values table in the "Output_series" sheet.
A9: Name | B9: Symbol | C9: Unit | D9: Value | E9: Intended destination | F9: Notes
A10: Electric energy input to the cooling generation | B10: EC;gen;el;in | C10: kWh | D10: =Method_input!D27 -> 48.96860666 | E10: M1-9
A11: Auxiliary energy for the cooling emission | B11: WC;aux;em | C11: kWh | D11: =Method_calculation!D31 -> 1.86547073 | E11: M1-9
A12: Auxiliary energy for the cooling distribution | B12: WC;aux;dis | C12: kWh | D12: =IF(Method_calculation!D28<>"-",Method_calculation!D28,0) -> 0 | E12: M1-9
A13: Auxiliary energy of the cooling generation | B13: WC;aux;gen | C13: kWh | D13: =Method_input!D29 -> 0 | E13: M1-9
A14: Cooling energy extracted from thermal zone j=1 | B14: QC;out;zt,j | C14: kWh | D14: =Method_calculation!D16 -> 72.81108018 | E14: M2-2, M4-5
A15: Cooling energy extracted from thermal zone j=2 | B15: QC;out;zt,j | C15: kWh | D15: =Method_calculation!D17 -> 25.59998586 | E15: M2-2, M4-5
A16: Cooling energy extracted from thermal zone j=3 | B16: QC;out;zt,j | C16: kWh | D16: =Method_calculation!D18 -> 66.13036914 | E16: M2-2, M4-5
A17: Cooling energy extracted from thermal zone j=4 | B17: QC;out;zt,j | C17: kWh | D17: =Method_calculation!D19 -> 22.00563783 | E17: M2-2, M4-5
A18: Required coolinig generation outlet temperature | B18: ϑC;gen:out;req | C18: °C | D18: =IF(Method_calculation!D6<>"-",Method_calculation!D6,IF(Method_calculation!D7<>"-",Method_calculation!D7,IF(Method_calculation!D9<>"-",Method_calculation!D9,Method_calculation!D10))) -> 26 | E18: M4-8
A19: Required cooling energy by the cooling generation system | B19: QC;gen;in;req | C19: kWh | D19: =IF(Method_calculation!D23="-",Method_calculation!D26,Method_calculation!D23) -> 195.8744267 | E19: M4-8
A20: AHU cooling coil output for ventilation system k=1 | B20: QC;ahu;out;k | C20: kWh | D20: =Method_calculation!D20 -> - | E20: M5-8
A21: AHU cooling coil output for ventilation system k=2 | B21: QC;ahu;out;k | C21: kWh | D21: =Method_calculation!D21 -> - | E21: M5-8
A22: Performance expression
A23: annual efficiency of the total cooling system | B23: hC;tot;an | C23: - | D23: =Method_calculation!D30 -> 3.564690807
A24: annual efficiency of the cooling generation system | B24: hC;gen;an | C24: - | D24: =Method_calculation!D32 -> 3.881281015

Sheet Output_series
A1: Here a time series can be generated to test the method with variable input data. Data input series must be inserted in the "input_series" sheet before.
A3: Time series for data output
A4: Settings
A5: Number of output data | H5: 12
A7: This table will be filled automatically via a macro scanning the "input_series" and performing for each time step the calculation defined in the "Method_calculation" sheet.
A8: Press CLEAR OUTPUT to reset output series
A9: Press "Run method" to start calculation of individual time steps
B13: Electric energy input to the cooling generation | C13: Auxiliary energy for the cooling emission | D13: Auxiliary energy for the cooling distribution | E13: Auxiliary energy of the cooling generation | F13: Cooling energy extracted from thermal zone j=1 | G13: Cooling energy extracted from thermal zone j=2 | H13: Cooling energy extracted from thermal zone j=3 | I13: Cooling energy extracted from thermal zone j=4 | J13: Required coolinig generation outlet temperature | K13: Required cooling energy by the cooling generation system | L13: AHU cooling coil output for ventilation system k=1 | M13: AHU cooling coil output for ventilation system k=2
B14: EC;gen;el;in | C14: WC;aux;em | D14: WC;aux;dis | E14: WC;aux;gen | F14: QC;out;zt,j | G14: QC;out;zt,j | H14: QC;out;zt,j | I14: QC;out;zt,j | J14: ϑC;gen:out;req | K14: QC;gen;in;req | L14: QC;ahu;out;k | M14: QC;ahu;out;k
A15: Symbol | B15: kWh | C15: kWh | D15: kWh | E15: kWh | F15: kWh | G15: kWh | H15: kWh | I15: kWh | J15: °C | K15: kWh | L15: kWh | M15: kWh
A16: Destination | B16: M1-9 | C16: M1-9 | D16: M1-9 | E16: M1-9 | F16: M2-2, M4-5 | G16: M2-2, M4-5 | H16: M2-2, M4-5 | I16: M2-2, M4-5 | J16: M4-8 | K16: M4-8 | L16: M5-8 | M16: M5-8
A17: Time stamp
A18: 1 | B18: 0 | C18: 0 | D18: 0 | E18: 0 | F18: 0 | G18: 0 | H18: 0 | I18: 0 | J18: 24 | K18: 0 | L18: - | M18: - | O18: =SUM(F18:I18,L18:M18) -> 0 | P18: =Method_input!$D$42*B18+Method_input!$D$41*Input_series!X14+Method_input!$D$42*C18+Method_input!$D$42*D18+Method_input!$D$42*E18 -> 0 | Q18: =Method_input!$D$42*B18+Method_input!$D$41*Input_series!X14+Method_input!$D$42*E18 -> 0
A19: 2 | B19: 0 | C19: 0 | D19: 0 | E19: 0 | F19: 0 | G19: 0 | H19: 0 | I19: 0 | J19: 24 | K19: 0 | L19: - | M19: - | O19: =SUM(F19:I19,L19:M19) -> 0 | P19: =Method_input!$D$42*B19+Method_input!$D$41*Input_series!X15+Method_input!$D$42*C19+Method_input!$D$42*D19+Method_input!$D$42*E19 -> 0 | Q19: =Method_input!$D$42*B19+Method_input!$D$41*Input_series!X15+Method_input!$D$42*E19 -> 0
A20: 3 | B20: 0 | C20: 0 | D20: 0 | E20: 0 | F20: 0 | G20: 0 | H20: 0 | I20: 0 | J20: 24 | K20: 0 | L20: - | M20: - | O20: 0 | P20: =Method_input!$D$42*B20+Method_input!$D$41*Input_series!X16+Method_input!$D$42*C20+Method_input!$D$42*D20+Method_input!$D$42*E20 -> 0 | Q20: =Method_input!$D$42*B20+Method_input!$D$41*Input_series!X16+Method_input!$D$42*E20 -> 0
A21: 4 | B21: 0 | C21: 0 | D21: 0 | E21: 0 | F21: 0 | G21: 0 | H21: 0 | I21: 0 | J21: 24 | K21: 0 | L21: - | M21: - | O21: 0 | P21: =Method_input!$D$42*B21+Method_input!$D$41*Input_series!X17+Method_input!$D$42*C21+Method_input!$D$42*D21+Method_input!$D$42*E21 -> 0 | Q21: =Method_input!$D$42*B21+Method_input!$D$41*Input_series!X17+Method_input!$D$42*E21 -> 0
A22: 5 | B22: 0.2050557169 | C22: 0.00781164636 | D22: 0 | E22: 0 | F22: 0.41858804 | G22: 0 | H22: 0.362576596 | I22: 0 | J22: 25 | K22: 0.8202228678 | L22: - | M22: - | O22: 0.781164636 | P22: =Method_input!$D$42*B22+Method_input!$D$41*Input_series!X18+Method_input!$D$42*C22+Method_input!$D$42*D22+Method_input!$D$42*E22 -> 0.2128673633 | Q22: =Method_input!$D$42*B22+Method_input!$D$41*Input_series!X18+Method_input!$D$42*E22 -> 0.2050557169
A23: 6 | B23: 60.71621339 | C23: 2.312998605 | D23: 0 | E23: 0 | F23: 110.977554 | G23: 16.32389642 | H23: 92.40697975 | I23: 11.59143043 | J23: 26 | K23: 242.8648536 | L23: - | M23: - | O23: 231.2998605 | P23: =Method_input!$D$42*B23+Method_input!$D$41*Input_series!X19+Method_input!$D$42*C23+Method_input!$D$42*D23+Method_input!$D$42*E23 -> 63.029212 | Q23: =Method_input!$D$42*B23+Method_input!$D$41*Input_series!X19+Method_input!$D$42*E23 -> 60.71621339
A24: 7 | B24: 48.96860666 | C24: 1.86547073 | D24: 0 | E24: 0 | F24: 72.81108018 | G24: 25.59998586 | H24: 66.13036914 | I24: 22.00563783 | J24: 26 | K24: 195.8744267 | L24: - | M24: - | O24: 186.547073 | P24: =Method_input!$D$42*B24+Method_input!$D$41*Input_series!X20+Method_input!$D$42*C24+Method_input!$D$42*D24+Method_input!$D$42*E24 -> 50.83407739 | Q24: =Method_input!$D$42*B24+Method_input!$D$41*Input_series!X20+Method_input!$D$42*E24 -> 48.96860666
A25: 8 | B25: 48.8165462 | C25: 1.682966471 | D25: 0 | E25: 0 | F25: 67.42157092 | G25: 26.24690338 | H25: 54.60177164 | I25: 20.02640116 | J25: 26 | K25: 176.7114795 | L25: - | M25: - | O25: 168.2966471 | P25: =Method_input!$D$42*B25+Method_input!$D$41*Input_series!X21+Method_input!$D$42*C25+Method_input!$D$42*D25+Method_input!$D$42*E25 -> 50.49951267 | Q25: =Method_input!$D$42*B25+Method_input!$D$41*Input_series!X21+Method_input!$D$42*E25 -> 48.8165462
A26: 9 | B26: 1.097135672 | C26: 0.03782411282 | D26: 0 | E26: 0 | F26: 1.868553972 | G26: 0 | H26: 1.91385731 | I26: 0 | J26: 25 | K26: 3.971531846 | L26: - | M26: - | O26: 3.782411282 | P26: =Method_input!$D$42*B26+Method_input!$D$41*Input_series!X22+Method_input!$D$42*C26+Method_input!$D$42*D26+Method_input!$D$42*E26 -> 1.134959785 | Q26: =Method_input!$D$42*B26+Method_input!$D$41*Input_series!X22+Method_input!$D$42*E26 -> 1.097135672
A27: 10 | B27: 0 | C27: 0 | D27: 0 | E27: 0 | F27: 0 | G27: 0 | H27: 0 | I27: 0 | J27: 24 | K27: 0 | L27: - | M27: - | O27: 0 | P27: =Method_input!$D$42*B27+Method_input!$D$41*Input_series!X23+Method_input!$D$42*C27+Method_input!$D$42*D27+Method_input!$D$42*E27 -> 0 | Q27: =Method_input!$D$42*B27+Method_input!$D$41*Input_series!X23+Method_input!$D$42*E27 -> 0
A28: 11 | B28: 0 | C28: 0 | D28: 0 | E28: 0 | F28: 0 | G28: 0 | H28: 0 | I28: 0 | J28: 24 | K28: 0 | L28: - | M28: - | O28: 0 | P28: =Method_input!$D$42*B28+Method_input!$D$41*Input_series!X24+Method_input!$D$42*C28+Method_input!$D$42*D28+Method_input!$D$42*E28 -> 0 | Q28: =Method_input!$D$42*B28+Method_input!$D$41*Input_series!X24+Method_input!$D$42*E28 -> 0
A29: 12 | B29: 0 | C29: 0 | D29: 0 | E29: 0 | F29: 0 | G29: 0 | H29: 0 | I29: 0 | J29: 24 | K29: 0 | L29: - | M29: - | O29: 0 | P29: =Method_input!$D$42*B29+Method_input!$D$41*Input_series!X25+Method_input!$D$42*C29+Method_input!$D$42*D29+Method_input!$D$42*E29 -> 0 | Q29: =Method_input!$D$42*B29+Method_input!$D$41*Input_series!X25+Method_input!$D$42*E29 -> 0
O30: =SUM(O18:O29) -> 590.7071566 | P30: =SUM(P18:P29) -> 165.7106292 | Q30: =SUM(Q18:Q29) -> 159.8035576

Sheet Graphs
A1: Energy flow data
A40: Operating conditions data

Sheet History
B2: Date | C2: Version scope | D2: Changes, notes
B4: 2014-10-31 | C4: 1st complete version
B6: 2014-11-07 | C6: standard public enquiry | D6: input value and formulae corrections; graphs added;
B7: 2015-02-13 | D7: disclaimer updated
B8: 2015-11-08 | C8: standard FV
C9: simplified calculation added
B10: 2016-01-21 | C10: Simplified and detailed calculations separated
B11: 2016-01-24 | C11: feedback Pim Helm | D11: input table adjusted
B12: 2016-03-07 | C12: Adjustment to last FV standard version | D12: DX_CLG_DIS_TYPE option added, formula (5) separated
